[Event "Charlotte Summer IM C 2022"]
[Site "Charlotte"]
[Date "2022.07.28"]
[Round "8.2"]
[White "Venkat, Raghav"]
[Black "Rodriguez Rivera, Pedro"]
[Result "1-0"]
[ECO "B51"]
[WhiteElo "2227"]
[BlackElo "2192"]
[Annotator "TA"]
[PlyCount "100"]
[EventDate "2022.07.24"]
[EventType "tourn"]
[EventCountry "USA"]
[SourceTitle "playchess.com"]
[Source "ChessBase"]
[SourceQuality "1"]
[TimeControl "5400+30"]

{[%evp 9,100,22,35,35,39,33,41,27,41,44,37,25,33,50,54,24,18,22,12,0,0,-14,0,0,0,0,0,0,0,0,0,0,0,0,0,0,25,31,264,266,336,325,399,395,387,375,450,450,450,447,447,435,399,275,238,7,318,297,280,293,696,711,689,599,592,592,577,558,462,425,466,410,395,334,490,274,826,777,737,711,6310,6295,6295,6120,6070,5465,29984,29985,29985,29986,29986,29987,29987]} 1. e4 {[%emt 0:08:43]} c5 {[%emt 0:00:22]} 2. Nf3 {[%emt 0:00:08]} d6 {[%emt 0:00:02]} 3. Bb5+ {[%emt 0:02:35]} Nd7 {[%emt 0:04:11][%cal Bb8d7,Bd7e5,Be5f3][%mdl 32]} 4. c3 {[%emt 0:00:29]} a6 {[%emt 0:00:01]} 5. Bd3 {[%emt 0:00:07] [#]} Ne5 $146 {[%emt 0:03:59]} ({Predecessor:} 5... g6 6. Bc2 Bg7 7. d4 Qc7 8. O-O Ngf6 9. a4 O-O 10. h3 b6 11. Re1 e5 12. d5 {0-1 (50) Anton Guijarro,D (2642)-Mamedov,R (2703) St Petersburg 2018}) 6. Be2 {[%emt 0:01:42] B51: Sicilian: Moscow Variation (3 Bb5+) without 3...Bd7.} Nxf3+ {[%emt 1:24:55]} 7. Bxf3 {[%emt 0:00:07]} e5 {[%emt 0:00:00]} 8. O-O {[%emt 0:00:18] White is slightly better.} Nf6 {[%emt 0:00:00]} 9. d4 {[%emt 0:00:23]} b5 {[%emt 0:00:00]} 10. a4 {[%emt 0:01:24] aiming for dxe5.} Bd7 {[%emt 0:00:00]} 11. dxe5 {[%emt 0:12:18]} (11. axb5 {is interesting.} axb5 12. Rxa8 Qxa8 13. Bg5) 11... dxe5 {[%emt 0:00:00]} 12. axb5 {[%emt 0:21:07]} axb5 {[%emt 0:00:00]} 13. Rxa8 {[%emt 0:00:08]} Qxa8 {[%emt 0:00:00]} 14. Na3 {[%emt 0:01:33][%cal Bb1a3,Ba3c2,Bc2e3][%mdl 32]} c4 {[%emt 0:00:00]} 15. Nc2 {[%emt 0:02:50]} Bc6 {[%emt 0:00:00]} 16. Re1 {[%emt 0:08:31]} Bc5 {[%emt 0:00:00]} 17. Be3 {[%emt 0:00:06]} Be7 {[%emt 0:00:00]} 18. Bg5 {[%emt 0:02:02]} O-O {[%emt 0:00:00][%cal Bh8f8,Bf8d8,Bd8d3][%mdl 32]} 19. Ne3 {[%emt 0:03:01]} Rd8 {[%emt 0:00:00]} 20. Qc1 {[%emt 0:01:25]} Rd3 {[%emt 0:00:00]} (20... Bxe4 $2 21. Nf5 Bxf3 22. Nxe7+ Kf8 23. Nf5 $18 (23. gxf3 Qxf3 24. Qe3 Qg4+ 25. Kf1 Rd3 $11)) 21. Bxf6 {[%emt 0:05:44]} Bxf6 {[%emt 0:00:00]} 22. Nd5 {[%emt 0:00:08]} Bxd5 {[%emt 0:00:00]} 23. exd5 {[%emt 0:00:05]} h6 $2 {[%emt 0:00:00]} (23... Qd8 $1 $14) 24. Be4 $18 {[%emt 0:00:10]} Bg5 {[%emt 0:00:00]} 25. Qa1 {[%emt 0:00:14]} Qd8 {[%emt 0:00:00]} (25... Qxa1 $2 26. Rxa1 Kf8 27. Bxd3 cxd3 28. Kf1 $18) 26. Bxd3 {[%emt 0:01:47]} cxd3 {[%emt 0:00:00]} 27. Rxe5 {[%emt 0:04:21][%mdl 4096] Endgame KQR-KQB} Qd6 {[%emt 0:00:00]} 28. Re8+ {[%emt 0:00:48]} Kh7 {[%emt 0:00:00]} 29. Qb1 {[%emt 0:05:10]} Qxd5 {[%emt 0:00:00]} 30. h4 {[%emt 0:00:12]} Bf4 {[%emt 0:00:00]} 31. g3 {[%emt 0:00:03]} Be5 {[%emt 0:00:00] [#]} 32. b3 $2 {[%emt 0:05:10]} ({Better is} 32. Rxe5 $1 $18 {[%mdl 512]} Qxe5 33. Qxd3+ g6 34. b4) 32... g6 $2 {[%emt 0:00:00][%mdl 8192] [#]} (32... f6 $1 $11) 33. Rxe5 $1 {[%emt 0:02:20][%mdl 512]} Qxe5 {[%emt 0:00:00]} 34. Qxd3 {[%emt 0:00:03] KQ-KQ} b4 $2 {[%emt 0:00:00]} (34... Kg7 35. b4 Qe1+ 36. Qf1 Qxc3) 35. cxb4 {[%emt 0:00:17] And now b5 would win.} Qe1+ {[%emt 0:00:00]} 36. Kg2 {[%emt 0:00:11]} Qxb4 {[%emt 0:00:00]} 37. Qc4 {[%emt 0:00:06] Inhibits Qg4.} Qb7+ {[%emt 0:00:00]} 38. Kg1 {[%emt 0:00:07]} Kg7 {[%emt 0:16:00]} 39. b4 {[%emt 0:00:13][%cal Bb3b4,Bb4b5,Bb5b6,Bb6b7][%mdl 32]} Kf8 {[%emt 0:00:00]} 40. Qc5+ {[%emt 0:00:19]} Ke8 {[%emt 0:00:00]} 41. b5 {[%emt 0:01:38] Black must now prevent h5.} Kd7 {[%emt 0:00:00]} (41... h5 $142 42. Kf1 Kd7) 42. h5 {[%emt 0:02:09]} Qf3 $2 {[%emt 0:00:00]} (42... gxh5 43. Qxh5 Ke8 44. Qe5+ (44. Qxh6 Qxb5 45. Qf6 Kf8 $16) 44... Kd7 45. Qd4+ Kc7) 43. hxg6 {[%emt 0:00:23]} fxg6 {[%emt 0:00:00]} 44. Qd4+ {[%emt 0:01:28]} Ke6 {[%emt 0:00:00]} 45. b6 {[%emt 0:01:25] White threatens Qc4+ and mate.} Qb7 {[%emt 0:00:00]} 46. Qe3+ {[%emt 0:00:13]} Kf7 {[%emt 0:00:00]} 47. Qf4+ {[%emt 0:00:54]} Kg8 {[%emt 0:00:00]} 48. Qc7 {[%emt 0:01:23] White mates.} Qd5 {[%emt 0:00:00]} 49. b7 {[%emt 0:00:59]} Qd1+ {[%emt 0:00:00]} 50. Kg2 {[%emt 0:00:04]} Qd5+ {[%emt 0:00:00] Weighted Error Value: White=0.19 (very precise) /Black=0.70} 1-0

[Event "Charlotte Summer IM C 2022"]
[Site "Charlotte"]
[Date "2022.07.28"]
[Round "8.3"]
[White "Rodrigue-Lemieux, Shawn"]
[Black "Arjun, Vishnuvardhan"]
[Result "1-0"]
[ECO "A16"]
[WhiteElo "2366"]
[BlackElo "2273"]
[Annotator "TA"]
[PlyCount "127"]
[EventDate "2022.07.24"]
[EventType "tourn"]
[EventCountry "USA"]
[SourceTitle "playchess.com"]
[Source "ChessBase"]
[SourceQuality "1"]
[TimeControl "5400+30"]

{[%evp 14,127,38,27,31,16,21,25,18,21,46,23,16,25,42,24,41,40,59,69,86,52,58,0,79,55,58,36,70,57,63,66,75,61,57,60,64,79,80,47,63,38,60,57,184,176,183,129,120,39,32,37,77,22,61,20,53,59,59,43,38,26,30,0,0,0,0,0,0,0,0,0,8,5,8,6,8,8,64,51,55,57,681,469,1181,1198,1183,1129,1167,1169,1128,1088,1088,999,786,691,1353,1243,29955,12806,29957,29948,29958,29958,29961,29962,29974,29975,29974,29976,29975,29976,29976,29976,29943,8844]} 1. c4 {[%emt 0:00:02]} g6 {[%emt 0:09:22]} 2. g3 {[%emt 0:00:08]} Bg7 {[%emt 0:00:06]} 3. Bg2 {[%emt 0:00:03]} Nf6 {[%emt 0:00:38]} 4. Nc3 {[%emt 0:00:05]} O-O {[%emt 0:00:14]} 5. e4 {[%emt 0:00:06]} d6 {[%emt 0:00:03]} 6. Nge2 {[%emt 0:00:04]} c6 {[%emt 0:00:30]} 7. O-O {[%emt 0:00:11]} Nbd7 {[%emt 0:01:44]} 8. d3 {[%emt 0:00:43]} a6 {[%emt 0:00:35] A16: English Opening: 1...Nf6 with ...d5.} 9. h3 {[%emt 0:02:16]} b5 {[%emt 0:02:12]} 10. Be3 {[%emt 0:01:37]} Rb8 {[%emt 0:01:46] White has an edge.} 11. b3 {[%emt 0:03:05] [#]} c5 $146 {[%emt 0:06:22]} ({Predecessor:} 11... e5 12. Qd2 Nc5 13. Rae1 b4 14. Nd1 a5 15. f4 Qe7 16. Nf2 a4 17. d4 exf4 18. Bxf4 Ncxe4 19. Nxe4 Nxe4 20. Bxe4 Qxe4 21. Bxd6 Bxh3 {0-1 (34) Bosiocic,M (2561)-Jankovic,A (2563) Zagreb 2011}) 12. Qd2 {[%emt 0:02:39]} e6 {[%emt 0:10:17]} 13. Rad1 {[%emt 0:07:08]} Qa5 {[%emt 0:01:11]} 14. g4 {[%emt 0:06:12]} Bb7 {[%emt 0:02:34]} 15. f4 {[%emt 0:03:50]} Rfe8 {[%emt 0:07:20]} 16. Rf2 {[%emt 0:10:08]} Qb4 {[%emt 0:02:21][%cal Od6d5]} 17. Qc1 {[%emt 0:03:48][%cal Oc3b5]} Qa5 {[%emt 0:01:35]} 18. Qd2 {[%emt 0:04:38]} Qb4 $1 {[%emt 0:02:09]} 19. Qc2 {[%emt 0:00:20]} Qa5 {[%emt 0:00:25]} 20. Rdf1 {[%emt 0:02:49]} d5 {[%emt 0:01:07]} 21. e5 {[%emt 0:05:38]} ({Reject} 21. cxd5 exd5 22. Bd2 d4 $11) 21... d4 {[%emt 0:00:27]} 22. Nxd4 {[%emt 0:00:58]} Bxg2 {[%emt 0:06:32]} 23. Kxg2 {[%emt 0:04:27] And now Nc6 would win.} cxd4 {[%emt 0:01:05]} 24. Bxd4 {[%emt 0:00:03]} Red8 {[%emt 0:01:18]} 25. exf6 {[%emt 0:00:26]} Bxf6 {[%emt 0:00:03]} 26. Bxf6 {[%emt 0:07:17]} Nxf6 {[%emt 0:00:07]} 27. Rf3 {[%emt 0:04:58]} h5 {[%emt 0:06:07]} 28. f5 {[%emt 0:05:03]} gxf5 {[%emt 0:03:58]} ({Better is} 28... hxg4 $14 29. hxg4 exf5) 29. gxf5 $18 {[%emt 0:00:02]} e5 {[%emt 0:00:01]} 30. Qd2 {[%emt 0:03:57]} (30. Rg3+ $18 Kh8 31. Kh2) 30... Kh7 $16 {[%emt 0:02:44]} 31. Ne4 {[%emt 0:00:35]} (31. Kh1 $16) 31... Qxd2+ $14 {[%emt 0:00:15]} 32. Nxd2 {[%emt 0:00:02]} Rd4 {[%emt 0:00:11] [#]} 33. Re1 {[%emt 0:01:38]} (33. Re3 $1 $16) 33... Rbd8 {[%emt 0:00:15]} 34. cxb5 {[%emt 0:02:53]} (34. Ree3 {is more complex.} Kg7 35. a4 bxa4 36. bxa4 e4 37. Rg3+) 34... Rxd3 {[%emt 0:03:46]} 35. Rxd3 {[%emt 0:05:29]} Rxd3 {[%emt 0:00:04][%mdl 4096] Endgame KRN-KRN} 36. Nf3 {[%emt 0:00:02]} axb5 {[%emt 0:05:49]} 37. Rxe5 {[%emt 0:00:09]} Nd5 $1 {[%emt 0:00:08]} 38. h4 {[%emt 0:04:42][%cal Of5f6]} Kg7 {[%emt 0:01:17]} 39. Kf2 {[%emt 0:01:10][%cal Of5f6]} Kf6 {[%emt 0:00:44][%cal Od3f3]} 40. Re4 {[%emt 0:00:44]} Nc3 {[%emt 0:02:03]} 41. Rb4 {[%emt 0:01:51]} Rd5 {[%emt 0:00:40]} 42. a3 {[%emt 0:01:16]} Rxf5 {[%emt 0:21:25]} 43. Rd4 {[%emt 0:00:02]} Nb1 {[%emt 0:00:00]} 44. a4 {[%emt 0:00:38]} bxa4 {[%emt 0:00:00]} 45. bxa4 {[%emt 0:00:01]} Ra5 {[%emt 0:00:00]} ({Black should try} 45... Rc5 $11) 46. Rc4 $1 {[%emt 0:00:02]} Na3 {[%emt 0:00:00]} 47. Rf4+ {[%emt 0:00:11]} Rf5 $2 {[%emt 0:00:00][%mdl 8192] White stays focused until the end.} (47... Ke7 $14) 48. Ke3 $18 {[%emt 0:01:42] Threatens to win with Rxf5+.} Nc2+ {[%emt 0:00:00]} (48... Rxf4 $142 49. Kxf4 Nc4) 49. Ke4 {[%emt 0:00:01]} Rxf4+ {[%emt 0:00:00]} 50. Kxf4 {[%emt 0:00:02] KN-KN} Nb4 {[%emt 0:00:00]} 51. a5 {[%emt 0:00:38]} Na6 {[%emt 0:00:00]} 52. Ke4 {[%emt 0:01:12]} Nb4 {[%emt 0:00:00]} 53. Nd4 {[%emt 0:00:28]} Ke7 {[%emt 0:00:00]} 54. Ke5 {[%emt 0:00:58]} f6+ {[%emt 0:00:00]} 55. Kf5 {[%emt 0:01:29] Kg6 is the strong threat.} Kd6 {[%emt 0:01:06]} 56. Kxf6 {[%emt 0:01:04] White wants to mate with Nf5+.} Kc5 {[%emt 0:00:17]} 57. Nf5 {[%emt 0:00:50] White mates.} Nc6 {[%emt 0:01:21]} 58. Ng7 {[%emt 0:00:47]} Nxa5 {[%emt 0:03:22]} 59. Nxh5 {[%emt 0:00:02]} Kd6 {[%emt 0:00:30]} 60. Ng7 {[%emt 0:04:20]} Nc4 {[%emt 0:00:01]} 61. Nf5+ {[%emt 0:00:45]} Kd5 {[%emt 0:00:05]} 62. h5 {[%emt 0:00:22][%cal Bh4h5,Bh5h6][%mdl 32]} Ne5 {[%emt 0:00:01]} 63. Ne3+ {[%emt 0:00:13]} Ke4 {[%emt 0:00:15] [#]} 64. h6 $1 {[%emt 0:00:44] Weighted Error Value: White=0.12 (very precise) /Black=0.49} 1-0

[Event "Charlotte Summer IM C 2022"]
[Site "Charlotte"]
[Date "2022.07.28"]
[Round "8.4"]
[White "Luo, Terry"]
[Black "Girones Barrios, Yans Richard"]
[Result "0-1"]
[ECO "E03"]
[WhiteElo "2204"]
[BlackElo "2412"]
[Annotator "TA"]
[PlyCount "74"]
[EventDate "2022.07.24"]
[EventType "tourn"]
[EventCountry "USA"]
[SourceTitle "playchess.com"]
[Source "ChessBase"]
[SourceQuality "1"]
[TimeControl "5400+30"]

{[%evp 14,74,9,-19,-24,-40,-40,-54,-45,-41,-31,-66,-56,-61,-51,-46,-60,-69,-73,-76,-40,-94,-36,-22,-25,-32,-36,-17,-39,-213,-222,-225,-224,-228,-219,-278,-300,-274,-265,-288,-282,-273,-259,-1696,-1679,-1699,-1654,-1550,-1680,-1652,-1540,-1608,-1508,-5106,-5106,-5397,-2604,-29969,-29971,-29973,-29974,-29975,-5377]} 1. d4 {[%emt 0:00:01] Chekhov,V} Nf6 {[%emt 0:00:07]} 2. c4 {[%emt 0:00:03]} e6 {[%emt 0:00:08]} 3. g3 {[%emt 0:00:03]} d5 {[%emt 0:01:27]} 4. Bg2 {[%emt 0:00:07]} dxc4 {[%emt 0:01:19]} 5. Qa4+ {[%emt 0:02:00]} Nbd7 {[%emt 0:00:41]} 6. Qxc4 {[%emt 0:00:29]} c5 {[%emt 0:03:27]} 7. Nf3 {[%emt 0:02:46]} a6 {[%emt 0:00:40]} 8. O-O {[%emt 0:06:00]} b5 {[%emt 0:00:41] E03: Open Catalan: 5 Qa4+ Nbd7 6 Qxc4.} 9. Qb3 {[%emt 0:05:57]} Bb7 {[%emt 0:00:54]} 10. a4 {[%emt 0:00:54] is the legacy move (10.Rd1).} c4 {[%emt 0:06:38] Black is slightly better.} 11. Qd1 {[%emt 0:09:19]} b4 {[%emt 0:03:39] [#]} 12. Ne5 $146 {[%emt 0:04:54]} ({Predecessor:} 12. Bg5 Be7 13. Nbd2 Rc8 14. Rc1 c3 15. bxc3 bxc3 16. Nb1 Qa5 17. Bxf6 Nxf6 18. Ne1 Bxg2 19. Nxg2 {½-½ (27) Golombek,H-Padevsky,N Moscow 1956 MCL [Chekhov,V]}) 12... Bxg2 {[%emt 0:01:11]} 13. Kxg2 {[%emt 0:00:01]} Rc8 {[%emt 0:07:05]} 14. Nd2 {[%emt 0:08:03]} Nxe5 {[%emt 0:10:04]} 15. dxe5 {[%emt 0:00:03]} Nd7 {[%emt 0:05:26] Black is more active.} 16. Ne4 {[%emt 0:01:22]} Nxe5 {[%emt 0:01:49]} 17. Bf4 {[%emt 0:00:10]} ({White should play} 17. Qxd8+ $1 $15 Rxd8 18. Bf4) 17... Nc6 {[%emt 0:09:51]} (17... Qd5 $17 18. f3 Nd7) 18. Qxd8+ $1 $15 {[%emt 0:06:03]} Nxd8 {[%emt 0:00:27]} 19. Rac1 {[%emt 0:06:47]} Nb7 {[%emt 0:01:02]} 20. Rfd1 {[%emt 0:00:58]} f6 {[%emt 0:02:18]} 21. Nd6+ $2 {[%emt 0:03:11] [#] Now White is beyond hope.} (21. Be3 $15) 21... Bxd6 $1 $19 {[%emt 0:02:03]} 22. Bxd6 {[%emt 0:00:01]} a5 {[%emt 0:00:01]} 23. e4 {[%emt 0:01:59]} Rc6 {[%emt 0:01:19]} 24. e5 {[%emt 0:01:01]} Nxd6 {[%emt 0:00:51]} 25. Rxd6 {[%emt 0:00:38]} Rxd6 {[%emt 0:00:08]} 26. exd6 {[%emt 0:00:01][%mdl 4096] Endgame KR-KR} Kd7 {[%emt 0:00:15]} 27. Rxc4 {[%emt 0:00:09] [#]} Rc8 {[%emt 0:00:52] Against Rc7+} ({Stronger than} 27... Kxd6 28. Kf3 $17) 28. Rxc8 {[%emt 0:06:01]} (28. Rg4 g5 29. h4) 28... Kxc8 {[%emt 0:00:10] KP-KP} 29. Kf3 {[%emt 0:00:00]} Kd7 {[%emt 0:02:28]} 30. Ke4 {[%emt 0:00:00]} Kxd6 {[%emt 0:38:29]} 31. Kd4 {[%emt 0:36:59]} e5+ {[%emt 0:00:00]} 32. Kc4 {[%emt 0:00:00]} Kc6 {[%emt 0:01:00]} 33. g4 {[%emt 0:01:00]} g6 {[%emt 0:00:30][%cal Bg7g6,Bg6h5][%mdl 32]} 34. h3 {[%emt 0:00:30]} h6 {[%emt 0:00:30]} 35. h4 {[%emt 0:00:30]} h5 {[%emt 0:00:30] Black mates.} 36. gxh5 {[%emt 0:00:00]} gxh5 {[%emt 0:00:00]} 37. f3 {[%emt 0:00:00]} f5 {[%emt 0:01:00] Weighted Error Value: White=0.91/Black=0.04 (flawless)} 0-1

[Event "Charlotte Summer IM C 2022"]
[Site "Charlotte"]
[Date "2022.07.28"]
[Round "8.5"]
[White "Xie, Bryan"]
[Black "Adewumi, Tanitoluwa"]
[Result "1-0"]
[ECO "A48"]
[WhiteElo "2191"]
[BlackElo "2309"]
[Annotator "TA"]
[PlyCount "109"]
[EventDate "2022.07.24"]
[EventType "tourn"]
[EventCountry "USA"]
[SourceTitle "playchess.com"]
[Source "ChessBase"]
[SourceQuality "1"]
[TimeControl "5400+30"]

{[%evp 10,109,2,0,8,10,11,0,6,0,31,9,54,20,46,37,35,0,62,0,14,0,64,0,81,78,94,85,91,95,92,72,67,0,0,0,0,-44,-55,-67,-27,-53,-16,-15,0,-7,0,0,20,18,218,222,226,225,606,347,343,343,427,412,434,414,485,475,459,418,29960,29961,29961,29959,29978,29979,29997,29981,29977,12474,7208,6240,6108,2286,1686,1544,29970,29971,29977,29975,29977,29976,29976,29977,29979,29980,29977,29968,29984,29985,29985,29986,29986,29987,29987,29988]} 1. d4 {[%emt 0:00:05]} Nf6 {[%emt 0:00:05]} 2. Nf3 {[%emt 0:00:07]} g6 {[%emt 0:00:55]} 3. Bf4 {[%emt 0:00:09]} Bg7 {[%emt 0:00:06]} 4. e3 {[%emt 0:00:07]} d6 {[%emt 0:00:06]} 5. h3 {[%emt 0:00:42]} O-O {[%emt 0:00:08]} 6. Be2 Re8 {[%emt 1:32:10] 6...c5 is the recent fashion. A48: 1 d4 Nf6 2 Nf3 g6: Torre, London and Colle Systems.} 7. O-O {[%emt 1:32:50]} Bf5 {[%emt 0:00:00]} 8. c4 c5 {[%emt 0:00:00] The position is equal.} 9. Nc3 {[%emt 0:00:00]} cxd4 {[%emt 0:00:00]} 10. exd4 {[%emt 0:01:30]} h6 {[%emt 0:02:00] [#]} 11. Bh2 $146 {[%emt 0:00:30]} ({Predecessor:} 11. Qb3 Qc8 12. Rfe1 g5 13. Bh2 Nc6 14. d5 Na5 15. Qb4 b6 16. Nd4 Bd7 17. Nb3 {0-1 (59) Pakleza,Z (2506)-Socko,B (2600) Katowice 2016}) 11... a6 {[%emt 0:00:00]} 12. Re1 Ne4 {[%emt 0:00:00]} 13. Nd5 {[%cal Oc4c5]} Nf6 {[%emt 0:00:00]} (13... Nc6 $11) 14. Nc3 {White is more active.} (14. Nxf6+ $14 Bxf6 15. g4) 14... Ne4 $1 $11 {[%emt 0:02:00]} 15. Nd5 {[%emt 0:02:00]} (15. Nxe4 $11 Bxe4 16. Qd2) 15... Nf6 $14 {[%emt 0:00:00]} 16. Nc3 ({White should play} 16. Nxf6+ $14 Bxf6 17. g4) 16... Nc6 {[%emt 0:00:00]} (16... Ne4 $1 $11) 17. d5 $1 $16 Na7 {[%emt 0:00:00][%cal Ob7b5]} 18. Rc1 Ne4 {[%emt 0:02:00]} 19. Nxe4 {[%emt 0:00:00]} Bxe4 {[%emt 0:00:00]} 20. Qb3 b5 {[%emt 0:01:00]} 21. cxb5 {[%emt 0:03:00]} ({Better is} 21. Red1 $14) 21... Bxf3 $11 {[%emt 0:00:00]} 22. Qxf3 Nxb5 {[%emt 0:00:00]} 23. Bxb5 axb5 {[%emt 0:00:00]} 24. Qb3 Qd7 {[%emt 0:02:00]} 25. Rc6 {[%emt 0:02:00]} Bf6 {[%emt 0:00:00]} 26. Bf4 {[%cal Bh2f4,Bf4d2,Bd2c3,Bc3d4][%mdl 32]} h5 {[%emt 0:00:00]} 27. Bd2 Qf5 {[%emt 0:01:30]} 28. Bc3 {[%emt 0:01:30]} Bh4 {[%emt 0:00:00]} 29. g3 Bxg3 {[%emt 0:01:00] Black cannot hold the game after this.} 30. fxg3 $18 {[%emt 0:00:00] Threatens to win with Kg2.} Qxh3 {[%emt 0:00:00]} 31. Re3 e6 $2 {[%emt 0:01:00]} (31... h4) 32. dxe6 {[%emt 0:02:00]} Rxe6 {[%emt 0:00:00]} 33. Bd4 {[%emt 0:00:00]} Rxe3 {[%emt 0:00:00]} 34. Qxe3 {[%emt 0:01:00]} h4 {[%emt 0:00:00]} 35. Rxd6 hxg3 {[%emt 0:00:00] [#] Hoping for ...Qh2+.} 36. Rxg6+ $3 {[%emt 0:00:00][%mdl 512]} fxg6 {[%emt 0:00:41][%mdl 4096] Endgame KQR-KQB} 37. Qb3+ Kh7 {[%emt 0:01:24]} (37... Kf8 $18 38. Qf3+ Ke7) 38. Qf7+ Kh6 {[%emt 0:00:08] [#]} 39. Qg7+ $1 {[%emt 0:00:00]} (39. Bg7+ Kh5 40. Qf3+ Kh4 41. Qe4+ (41. Bf6+ g5 $11) 41... Qg4 42. Qh1+ (42. Qxa8 {gets mated.} Qd1+ 43. Kg2 Qe2+ 44. Kg1 Qh2+ 45. Kf1 Qf2#) (42. Bf6+ g5 $11) 42... Qh3 43. Qe4+ (43. Bf6+ g5 $11) 43... Qg4 44. Qh1+ (44. Qxa8 Qd1+ 45. Kg2 Qe2+ 46. Kg1 Qh2+ 47. Kf1 Qf2#) (44. Bf6+ g5 $11) 44... Qh3 45. Qe4+ $11 (45. Bf6+ g5 $11)) 39... Kg5 40. Be3+ {[%emt 0:00:00]} Kh4 {[%emt 0:02:17]} 41. Qe7+ {[%emt 0:00:00]} Kg4 42. Qd7+ (42. Qe6+ $142 Kf3 43. Qxh3 Ra6 44. Bf2 Rf6 45. Bxg3 Ke4 46. Qg4+ Kd5 47. Qd7+ Ke4 48. Qe7+ Kd4 49. Qxf6+ Ke3 50. Qxg6) 42... Kh4 {[%emt 0:00:00] [#]} 43. Bg5+ $1 {[%emt 0:00:00][%mdl 576] Deflection} Kxg5 {[%emt 0:00:09]} 44. Qxh3 {[%emt 0:00:21] KQ-KR} Ra4 {[%emt 0:00:26]} 45. b3 {[%emt 0:00:34]} ({Not} 45. Qxg3+ Rg4 46. Kh2 Rxg3 47. Kxg3 Kf5 $11) 45... Rxa2 {[%emt 0:01:02]} 46. Qxg3+ {[%emt 0:00:08] White mates.} Kh6 {[%emt 0:01:23]} 47. Qe3+ {[%emt 0:00:33]} Kh7 {[%emt 0:00:30]} 48. Qe7+ {[%emt 0:00:07]} Kh6 {[%emt 0:00:00]} 49. Qb4 {[%emt 0:00:19]} Kh5 {[%emt 0:00:00]} 50. Qxb5+ {[%emt 0:00:08]} g5 {[%emt 0:00:00]} 51. Qe8+ {[%emt 0:00:30]} Kh4 {[%emt 0:00:00] [#]} 52. Qa4+ $3 {[%emt 0:00:09][%mdl 512]} Rxa4 {[%emt 0:00:00]} 53. bxa4 {[%emt 0:00:07][%cal Bb3a4,Ba4a5,Ba5a6][%mdl 32]} g4 {[%emt 0:00:15]} 54. a5 {[%emt 0:00:05]} Kh3 {[%emt 0:00:04]} 55. a6 {[%emt 0:00:07] Weighted Error Value: White=0.17 (very precise) /Black=0.51} 1-0